{"text_format":"1","workbook":"xlsx","n_sheets":3,"sheets":["Data","Chart","Sheet3"],"not_rendered":{"charts":2,"images":4,"macros":1,"external_links":0,"defined_names":0,"comments":0,"pivot_tables":0},"unopened":[],"bounds":{"document_bytes":16777216,"sheet_cells":100000,"rows_first":2000,"rows_last":500,"rows_between":2000,"halvings":0,"cell_chars":16384,"cell_head_chars":4096},"cells_cut":0,"cells_raw":0,"read":"whole","date_system":"1900"}

{"sheet":"Data","index":0,"n_rows":153,"n_cols":7,"rows_kept":153,"cut":false,"hidden":false,"merged":[]}
[]
[null,"How You Spend Your Lifetime"]
[]
["       How Many Years Would/Did You Spend in the:"]
[null,null,"      Instructions: Fill in data for red boxes."]
[]
[null,null,null,"Infant/Toddler Stage:"]
[]
[null,null,null,"Childhood/Teenage Stage:"]
[]
[null,null,null,"Adult Stage:"]
[]
[null,null,null,"Retirement Stage:"]
[null,null,null,null,null,null,"Scroll Down When Done"]
[]
[]
[]
[]
["INFANT/TODDLER STAGE"]
["    How Many Hours a Day Do/Did/Would You Spend for:"]
[]
[null,null,null,null,"Hours in","Days in"]
[null,null,"Activities",null,"a Day","Lifetime"]
[null,null,"Infant/Toddler Stage"]
[null,null,"  Sleeping",null,null,{"$f":"$E$7*E25*365/24","v":0}]
[null,null,"  Brushing Teeth",null,null,0]
[null,null,"  Taking a Bath",null,null,0]
[null,null,"  Eating",null,null,0]
[null,null,"  Play",null,null,0]
[null,null,"  Prayer",null,null,0]
[null,null,"  Others*",null,{"$f":"24-SUM(E25:E30)","v":24},0]
["*Must be positive",null,null,null,null,null,"Scroll Down When Done"]
[]
[]
[]
[]
[]
["CHILDHOOD/TEENAGE STAGE"]
["    How Many Hours a Day Do/Did/Would You Spend for:"]
[null,null,null,null,"Hours in","Days in"]
[null,null,"Activities",null,"a Day","Lifetime"]
[null,null,"Childhood"]
[null,null,"  Sleeping",null,null,{"$f":"$E$9*E43*365/24","v":0}]
[null,null,"  Brushing Teeth",null,null,0]
[null,null,"  Taking a Bath",null,null,0]
[null,null,"  Eating",null,null,0]
[null,null,"  Studying",null,null,0]
[null,null,"  Sitting in traffic",null,null,0]
[null,null,"  Leisure",null,null,0]
[null,null,"  Prayer",null,null,0]
[null,null,"  Others*",null,{"$f":"24-SUM(E43:E50)","v":24},0]
["*Must be positive",null,null,null,null,null,"Scroll Down When Done"]
[]
[]
[]
[]
[]
["ADULT STAGE"]
["   How Many Hours a Day Do/Did/Would You Spend for:"]
[null,null,null,null,"Hours in","Days in"]
[null,null,"Activities",null,"a Day","Lifetime"]
[null,null,"Adulthood"]
[null,null,"  Sleeping",null,null,{"$f":"$E$11*E63*365/24","v":0}]
[null,null,"  Brushing Teeth",null,null,0]
[null,null,"  Taking a Bath",null,null,0]
[null,null,"  Eating",null,null,0]
[null,null,"  Working",null,null,0]
[null,null,"  Sitting in traffic",null,null,0]
[null,null,"  Leisure",null,null,0]
[null,null,"  Prayer",null,null,0]
[null,null,"  Others*",null,{"$f":"24-SUM(E63:E70)","v":24},0]
["*Must be positive",null,null,null,null,null,"Scroll Down When Done"]
[]
[]
[]
[]
[]
["RETIREMENT STAGE"]
["    How Many Hours a Day Do/Did/Would You Spend for:"]
[null,null,null,null,"Hours in","Days in"]
[null,null,"Activities",null,"a Day","Lifetime"]
[null,null,"Retirement"]
[null,null,"  Sleeping",null,null,{"$f":"$E$13*E83*365/24","v":0}]
[null,null,"  Brushing Teeth",null,null,0]
[null,null,"  Taking a Bath",null,null,0]
[null,null,"  Eating",null,null,0]
[null,null,"  Working",null,null,0]
[null,null,"  Sitting in traffic",null,null,0]
[null,null,"  Leisure",null,null,0]
[null,null,"  Prayer",null,null,0]
[null,null,"  Others*",null,{"$f":"24-SUM(E83:E90)","v":24},0]
["*Must be positive",null,null,null,null,null,"Scroll Down When Done"]
[]
[]
[]
[]
[]
[]
["            Based on your answers, during your lifetime, you will spend:"]
[null,"sleeping",{"$f":"F25+F43+F63+F83","v":0},"days sleeping"]
[null,"brushing teeth",{"$f":"F26+F44+F64+F84","v":0},"days brushing your teeth"]
[null,"bathing",{"$f":"F27+F45+F65+F85","v":0},"days bathing"]
[null,"eating",{"$f":"F28+F46+F66+F86","v":0},"days eating"]
[null,"schooling",{"$f":"F47","v":0},"days in school"]
[null,"working",{"$f":"F67+F87","v":0},"days working"]
[null,"in traffic",{"$f":"F48+F68+F88","v":0},"days sitting in traffic"]
[null,"liesure",{"$f":"F29+F49+F69+F89","v":0},"days in leisure"]
[null,"praying",{"$f":"F30+F50+F70+F90","v":0},"days praying, and"]
[null,"others",{"$f":"F31+F51+F71+F91","v":0},"days doing other things."]
[null,"You will have",{"$f":"+SUM(C100:C109)","v":0},"days in your lifetime."]
[]
[null,null,null,null,null,null,"Scroll Down to See Chart"]
[]
[]
[]
[]
[]
[]
[]
[]
[]
[]
[]
[]
[]
[]
[]
[]
[]
[]
[]
[]
[]
[]
[]
[]
[]
[null,null,null,null,"Scroll Down and See How to Analyze the Results"]
[]
[]
[]
[]
[null,"   Life is there to enjoy and bring joy."]
[null,"Do you lead a joyful life or do you let"]
[null,"           life's chores lead you?"]
[]
[null,null,"              from the movie \"The Bucket List\""]
[]
["                     Carter Chambers : “You know, the ancient Egyptians had a beautiful belief about death."]
["                      When their souls got to the entrance to heaven, the guards asked two questions. Their"]
["                                     answers determined whether they were able to enter or not."]
[]
["              ‘Have you found joy in your life?’ 'Has your life brought joy to others?’”"]

{"sheet":"Chart","index":1,"n_rows":33,"n_cols":2,"rows_kept":33,"cut":false,"hidden":false,"merged":[]}
[]
[]
[]
[]
[]
[]
[]
[]
[]
[]
[]
[]
[]
[]
[]
[]
[]
[]
[]
[]
[]
[]
[]
[]
[]
[]
[]
[null,"LIFE's questions for you:"]
[]
[null,"Life is finite!"]
[null,"Are you living a balanced life?"]
[null,"Do you spend your spare time for the more important things or"]
[null,"   do you let the chores in life lead you?"]

{"sheet":"Sheet3","index":2,"n_rows":0,"n_cols":0,"rows_kept":0,"cut":false,"hidden":false,"merged":[]}